[Event "CCT Julius Baer-D1-Place 2024"]
[Site "Online"]
[Date "2024.09.26"]
[Round "1"]
[White "Aronian, Levon"]
[Black "Vidit, Santosh Gujrathi"]
[Result "1-0"]
[ECO "C54"]
[WhiteElo "2729"]
[BlackElo "2720"]
[Annotator "TA"]
[PlyCount "125"]
[EventDate "2024.09.25"]
[EventType "swiss"]
[EventCountry "NET"]
[SourceTitle "playchess.com"]
[Source "ChessBase"]
[SourceQuality "1"]
[TimeControl "600+2"]

{[%evp 9,125,20,33,38,32,-11,-8,19,43,0,48,30,21,31,18,-45,-40,-45,-60,-56,-33,-71,-73,-70,0,-131,-171,-124,6,-134,-103,-206,-227,-223,-232,-262,-218,-243,-231,-204,-166,-172,-27,-24,-45,-77,0,0,36,20,6,0,0,0,0,0,73,-199,-185,-187,-201,-158,-32,-140,-140,-212,-213,-201,-225,-206,-178,-239,-246,-234,-220,-246,-221,-226,-205,-198,-230,-212,-152,-158,-149,-164,-172,-169,-122,-167,-92,-130,0,0,0,0,0,0,0,0,0,0,0,0,0,0,29983,29984,29984,29985,29985,29986,29986,29987,29987,29988,29988,29989]} 1. e4 {[%emt 0:00:14]} e5 {[%emt 0:00:04]} 2. Nf3 {[%emt 0:00:02]} Nc6 {[%emt 0:00:01]} 3. Bc4 {[%emt 0:00:01]} Bc5 {[%emt 0:00:02]} 4. c3 {[%emt 0:00:02]} (4. O-O Nf6 5. d3 d6 6. c3 O-O 7. h3 Bb6 8. a4 a5 9. Re1 h6 10. Bb3 Re8 11. Nbd2 Be6 12. Nc4 Ba7 13. Be3 Bxe3 14. Nxe3 d5 15. exd5 Nxd5 16. Nxd5 Bxd5 17. Re3 Re6 {½-½ Aronian,L (2729)-Vidit,S (2720) Olympiad-45 Budapest 2024 (10.4)}) 4... Nf6 {[%emt 0:00:01]} 5. d3 {[%emt 0:00:01]} d6 {[%emt 0:00:02]} 6. a4 {[%emt 0:00:01] White is slightly better due to center control and better piece development. Castling kingside would be a good move. C54: Giuoco Piano: 4 c3 Pf6, Hoofdvarianten met 5 d4 en 5 d3.} a5 {[%emt 0:00:01] OK} 7. Bg5 {[%emt 0:00:01] Onnauwkeurig wordt verkozen boven 7.0-0.} h6 {[%emt 0:00:08] OK} 8. Bh4 {[%emt 0:00:01] OK. De stelling is in evenwicht.} Qe7 {[%emt 0:00:30]} 9. Nbd2 {[%emt 0:00:04] Onnauwkeurig} Bd7 {[%emt 0:00:01] Fout (0.5)} (9... g5 $11 {is het overwegen waard.} 10. Bg3 Nh5) 10. O-O {[%emt 0:00:53]} g5 {[%emt 0:00:09] OK} 11. Bg3 {[%emt 0:00:01] OK} O-O-O $146 {[%emt 0:00:03] White stands slightly better. Black needs to focus on solidifying the kingside and consider developing the light-squared bishop. OK} ({Predecessor:} 11... O-O 12. Re1 Rae8 13. Nf1 Nh5 14. Nxe5 Nxg3 15. Nxd7 Nxe4 16. Nxc5 {1-0 Zwirs,N (2422)-Pacher,M (2427) Groningen op 57th 2019 (7)}) 12. Rb1 {[%emt 0:00:04] Fout (0.6)} (12. Bd5 $11 {White is slightly better. Black needs to defend solidly. Consider playing d4 to open lines.}) 12... h5 {[%emt 0:00:42]} 13. h4 {[%emt 0:00:05] OK} (13. Nxg5 $2 {White is slightly better. Focus on developing the queen's rook and consider centralizing the queen. slaat de verkeerde figuur.} h4 14. d4 exd4 15. cxd4 Bxd4 $17 (15... Nxd4 $2 16. Bf4 $19)) 13... gxh4 {[%emt 0:00:05] OK} 14. Bxh4 {[%emt 0:00:05] White is slightly better. Focus on developing your knight and consider pushing d4. Black needs to defend solidly.} Rdg8 {[%emt 0:00:01] Beste (Gemakkelijk)} 15. Kh1 {[%emt 0:00:10] Onnauwkeurig} Rg4 {[%emt 0:00:08][%cal Og4h4] Black is solid but needs to be careful. White has active bishops and strong central control. OK} 16. g3 {[%emt 0:00:02] OK} Rhg8 {[%emt 0:00:13] OK} 17. b4 {[%emt 0:00:31] Black has a strong initiative. White needs to defend carefully, possibly considering moves like d4 to disrupt Black's bind. Fout (1.3)} (17. Bd5 $11) 17... axb4 $17 {[%emt 0:01:13] OK} 18. cxb4 {[%emt 0:00:01]} Bxb4 {[%emt 0:00:28] Fout (1.3)} (18... Nxb4 $17 19. a5 R8g6) 19. Nb3 {[%emt 0:01:50] Fout (1.4)} (19. a5 $1 $11 {blijft gelijk.}) 19... Be6 $1 {[%emt 0:01:36] ...Bxc4 zou dodelijk zijn. Sterk} 20. Qc2 {[%emt 0:01:30] White is slightly better; developing the knight to g5 or putting pressure on the pinned bishop could be good moves. Fout (1.0)} (20. Bb5 $17 {was de enige kans.}) 20... Bxc4 $19 {[%emt 0:00:15] OK} 21. Qxc4 {[%emt 0:00:03] [#]} d5 $1 {[%emt 0:00:08][%mdl 512] OK} 22. Qc2 {[%emt 0:00:26] White is better, focusing on activating pieces and challenging Black's setup. Nxg4 could be a strong move. OK} dxe4 {[%emt 0:00:08]} 23. dxe4 {[%emt 0:00:02][%cal Oa4a5]} Qe6 {[%emt 0:00:05] Black has a slight advantage. Black's pieces are more active, especially the bishops, and White must be cautious. Defending solidly is key for White. OK} 24. Nh2 {[%emt 0:00:11] Beste} R4g6 {[%emt 0:00:35]} (24... Rxe4 25. Bxf6 Rc4 26. Qh7 $18) 25. a5 {[%emt 0:00:34]} Nxa5 {[%emt 0:00:20] Fout (1.4)} (25... Bxa5 26. Nxa5 Nxa5 27. Rfc1 $14) (25... Qh3 $1 $19 {En nu zou ...Ng4 winnen.} 26. f3 (26. a6 $2 Ng4 $17) 26... Rxg3 (26... Nxa5 27. Nxa5 Bxa5 28. Rb5 $11) 27. Bxg3 Rxg3) 26. Nxa5 {[%emt 0:00:35]} Bxa5 {[%emt 0:00:00]} 27. Ra1 {[%emt 0:00:03] White is better. Attacking chances on f6 and h5. Black needs to defend carefully. OK} b6 {[%emt 0:00:10] Fout (0.8)} ({Zwart zou moeten proberen} 27... Bb6 $1 $17 {...Bd4 is de sterke dreiging.} 28. Ra8+ {White is better. White has control of the open file and more active pieces. Black needs to defend carefully, especially around the king. A move like f4 can add pressure.} Kd7 29. Rd1+ Bd4 30. Rxg8 Rxg8 31. Qa4+ Ke7 (31... c6 32. Rxd4+ exd4 33. Qxd4+ Qd6 34. Bxf6 $11)) 28. Rfc1 $11 {[%emt 0:00:16][%csl Gc1][%cal Rc2c7] Beste (Gemakkelijk)} Ne8 {[%emt 0:00:05] Black is slightly better, exploiting White's weaknesses. Keep the pressure on White's king and consider counter threats against White's active pieces. Onnauwkeurig} 29. Qd3 {[%emt 0:00:24][%mdl 1024] Wit heeft compensatie. OK} f6 $1 {[%emt 0:00:36] White is better. Black has weak pawns and an exposed king. Black needs to defend carefully. Sterk} 30. Kg2 {[%emt 0:02:05] Dreigt te winnen met Nf1.} Nd6 {[%emt 0:00:37] Beste (Gemakkelijk)} 31. Rc6 $1 {[%emt 0:00:02] White is clearly winning. Active pieces, threats against Black's king, and strong control of the center. Sterk} Kb7 {[%emt 0:00:44] OK} 32. Rac1 {[%emt 0:00:03][%cal Rc6c7] Dansen op een scheermes. OK} Rc8 {[%emt 0:00:06] White is winning. Black's position is defensively overloaded and vulnerable to tactical threats. Fout (0.7)} (32... R8g7 $11 {Houdt de partij in balans.}) 33. Nf3 $2 {[%emt 0:00:09][%mdl 8192] Wit is actiever. Verliest partij (2.7)} (33. Nf1 $1 $16 {[%cal Rf1e3] houdt druk op de ketel.}) 33... Rg7 $1 $19 {[%emt 0:00:34] Sterk} 34. Qc2 {[%emt 0:00:12]} Rd7 $1 {[%emt 0:00:11] Black is slightly better. The bishop on a5 and the activity of the rooks offer good counterplay. Defending solidly is key here. Sterk} 35. Qa4 {[%emt 0:00:01] White is winning. Black's position is very passive, and White's pieces are well-positioned for attack. Consider moves like Qa4.} Qg4 {[%emt 0:00:19] Fout (1.3)} (35... Ra8 $17 {Sterke dreiging met ...Ra7.} 36. Qc2 Qf7) 36. Bxf6 {[%emt 0:00:15] Fout (1.1)} ({Enige zet:} 36. R6c2 $1 $15 Rf7 (36... Nxe4 37. Rc4 $14) 37. Rb2) 36... Qxe4 $17 {[%emt 0:00:08] White has a significant advantage. Black's pieces are poorly coordinated, and White has threats against the Black king. Black needs to defend carefully. Beste (Gemakkelijk)} 37. Qxe4 {[%emt 0:00:13] Fout (0.7)} (37. Qc2 $17 {was hoogst noodzakelijk.}) 37... Nxe4 $19 {[%emt 0:00:00] White is better. The bishop pair and active pieces put pressure on Black's weakened king side. Black needs to defend carefully.} 38. Bxe5 {[%emt 0:00:01] OK} Nc5 $1 {[%emt 0:00:17] Black is up material (an exchange), but White's active pieces create threats. Black needs to defend solidly, especially the weak b6 pawn. OK} 39. Rh6 {[%emt 0:00:02] OK} Nd3 {[%emt 0:00:01] White is significantly better. Black's pieces are cramped, and White's rooks and knight are active.} 40. Rc4 {[%emt 0:00:02] Fout (0.6)} (40. Rcc6 {was nodig.}) 40... Rf8 {[%emt 0:00:05][%cal Of8f3] met als doel voor ...Rxf3! OK} 41. Rxh5 {[%emt 0:00:03]} Rdf7 {[%emt 0:00:03] OK} 42. Bf4 {[%emt 0:00:02] OK} Nxf4+ {[%emt 0:00:16] OK} 43. gxf4 {[%emt 0:00:00] White is better. Black's knight and bishop are awkwardly placed. Rook to f5 would be a strong move for White.} Rxf4 {[%emt 0:00:01] White is better. Black needs to defend solidly. Moving the rook to protect the pawns could be a good idea.} 44. Rxf4 {[%emt 0:00:01]} Rxf4 {[%emt 0:00:01][%mdl 4096] Eindspel. KRB-KRN} 45. Ne5 {[%emt 0:00:01]} c5 {[%emt 0:00:04]} 46. Nd3 {[%emt 0:00:02] Beste} Rc4 {[%emt 0:00:01] White is winning, Black is in a difficult position. Protect the a5 Bishop.} 47. f4 {[%emt 0:00:01] OK} Rc2+ {[%emt 0:00:03] White is winning. Threaten the rook and aim for promotion. Black is in a tough spot. OK} 48. Kf3 {[%emt 0:00:02] Beste} c4 {[%emt 0:00:01] Beste (Gemakkelijk)} 49. Ne5 {[%emt 0:00:01] [#] Onnauwkeurig} c3 {[%emt 0:00:02] Fout (0.8)} ({Beter is} 49... Rc1 $1 $19 {Wit moet nu ...Ka6 voorkomen.} 50. f5 c3 51. Rh7+ Ka6) 50. Rh1 {[%emt 0:00:03] White is winning. Black's pieces are awkwardly positioned, and White has multiple threats with the knight and rook. Onnauwkeurig} Rd2 {[%emt 0:00:07] Fout (1.3)} ({Zwart zou moeten spelen} 50... b5 $17 {White is clearly better. Black's king is unsafe, and White has strong attacking chances. Hoopt vervolgens op ...Rd2.} 51. Ke4 Re2+ 52. Kd4 Rd2+ 53. Nd3 Kc7 54. Rh7+ Kd8 55. Rh8+ Ke7 56. Rh7+ Kf8) 51. Nc4 $11 {[%emt 0:00:01] OK} c2 {[%emt 0:00:07]} 52. Rc1 {[%emt 0:00:03] White is winning. The White knight and rook are dominating, and Black's pieces are passive. White can easily pick up more material or checkmate soon. OK} Rd3+ {[%emt 0:00:04]} 53. Ke4 {[%emt 0:00:01] White is much better. Black's c2 pawn is strong but White's knight and rook are very active. Pushing the f-pawn could be decisive. OK} Rc3 {[%emt 0:00:02] OK} 54. Ne3 {[%emt 0:00:01] White is winning. Black is down significant material and defensively weak. White should capitalize on this and proceed to convert the advantage. OK} b5 {[%emt 0:00:03] OK} 55. Rxc2 {[%emt 0:00:05] OK} Rxc2 {[%emt 0:00:01] White is winning. Black's bishop and pawns are insufficient to counter White's rook and knight. White can proceed aggressively.} 56. Nxc2 {[%emt 0:00:00] KB-KN} Kc6 {[%emt 0:00:02]} 57. Nd4+ {[%emt 0:00:01] OK} Kc5 $2 {[%emt 0:00:01][%mdl 8192] Verliest partij (Mat)} (57... Kd6 $11) 58. Nb3+ {[%emt 0:00:01] Beste (Gemakkelijk). Wit zet mat.} Kb4 {[%emt 0:00:01]} 59. Nxa5 {[%emt 0:00:01]} Kxa5 {[%emt 0:00:00]} 60. f5 {[%emt 0:00:00][%cal Bf4f5,Bf5f6,Bf6f7][%mdl 32] EV=24.77. Goes to f7 (dbg))} b4 {[%emt 0:00:01][%cal Bb5b4,Bb4b3][%mdl 32] White is winning. Black's king and pawn are out of play, and White will promote the pawn to a queen quickly. EV=14.73. Goes to b3 (dbg))} 61. f6 {[%emt 0:00:03]} b3 {[%emt 0:00:01] [#]} 62. Kd3 $1 {[%emt 0:00:00] White is winning. Promote the pawn on the next move.} Kb4 {[%emt 0:00:01]} 63. f7 {[%emt 0:00:01] Een wilde partij.   Blunder waarde: Wit=0.27 (precies) /Zwart=0.33.  Verliest partij:   	Wit=1      	Zwart=1      Fout:        	Wit=7      	Zwart=8      Onnauwkeurig:    	Wit=5      	Zwart=1      OK:         	Wit=18     	Zwart=19     Beste:        	Wit=5      	Zwart=4      Sterk:        	Wit=1      	Zwart=4} 1-0

[Event "CCT Julius Baer-D1-Place 2024"]
[Site "Online"]
[Date "2024.09.26"]
[Round "1"]
[White "Vidit, Santosh Gujrathi"]
[Black "Aronian, Levon"]
[Result "1-0"]
[ECO "C18"]
[WhiteElo "2720"]
[BlackElo "2729"]
[Annotator "TA"]
[PlyCount "137"]
[EventDate "2024.09.25"]
[EventType "swiss"]
[EventCountry "NET"]
[SourceTitle "playchess.com"]
[Source "ChessBase"]
[SourceQuality "1"]
[TimeControl "600+2"]

{[%evp 73,137,-64,0,0,75,41,159,160,170,155,168,157,295,0,0,0,126,121,113,115,104,0,0,0,0,0,0,0,0,0,0,-14,0,0,15,0,0,0,0,0,0,0,15,14,24,22,22,26,102,0,0,0,0,0,0,0,2393,1964,29982,29983,29983,29984,29984,29985,29985,29986]} 1. e4 {[%emt 0:00:04]} e6 {[%emt 0:00:04]} 2. d4 {[%emt 0:00:05]} d5 {[%emt 0:00:01]} 3. Nc3 {[%emt 0:00:02]} Bb4 {[%emt 0:00:01]} 4. e5 {[%emt 0:00:02]} c5 {[%emt 0:00:01]} 5. a3 {[%emt 0:00:01]} Ba5 {[%emt 0:00:00]} 6. b4 {[%emt 0:00:07]} cxd4 {[%emt 0:00:02]} 7. Qg4 {[%emt 0:00:08]} Kf8 {[%emt 0:00:03]} 8. Nb5 {[%emt 0:00:06]} Bb6 {[%emt 0:00:01]} 9. Nf3 {[%emt 0:00:04]} Nc6 {[%emt 0:00:01]} 10. Qf4 {[%emt 0:00:22]} f6 {[%emt 0:02:10]} 11. Bb2 {[%emt 0:01:01]} g5 {[%emt 0:00:35]} 12. Nxg5 {[%emt 0:00:15]} a6 {[%emt 0:00:02]} 13. Nd6 {[%emt 0:00:46]} Nxe5 {[%emt 0:00:03]} 14. Nxc8 {[%emt 0:00:58]} Qxc8 {[%emt 0:00:03]} 15. O-O-O {[%emt 0:02:19]} Qc6 {[%emt 0:00:59]} 16. Nf3 {[%emt 0:00:53]} Rc8 {[%emt 0:00:17]} 17. Qd2 {[%emt 0:00:07]} Nxf3 {[%emt 0:01:05]} 18. gxf3 {[%emt 0:00:00]} Kf7 {[%emt 0:00:06]} 19. Bd3 {[%emt 0:00:05]} Ne7 {[%emt 0:00:10]} 20. Qh6 {[%emt 0:00:06]} Ng6 {[%emt 0:00:27]} 21. Rhg1 {[%emt 0:00:15]} f5 {[%emt 0:00:01]} 22. Kb1 {[%emt 0:00:16]} Qd6 {[%emt 0:00:27]} 23. h4 {[%emt 0:00:19]} Rcg8 {[%emt 0:00:24]} 24. Rde1 {[%emt 0:00:18]} a5 {[%emt 0:01:34]} 25. b5 {[%emt 0:00:04]} Qd8 {[%emt 0:00:24]} 26. h5 {[%emt 0:00:44]} Nf8 {[%emt 0:00:01]} 27. Qf4 {[%emt 0:00:18]} Rxg1 {[%emt 0:00:28]} 28. Rxg1 {[%emt 0:00:00]} Rg8 {[%emt 0:00:01]} 29. Re1 {[%emt 0:00:01]} Qc7 {[%emt 0:00:16]} 30. Qh6 {[%emt 0:00:21]} Bc5 {[%emt 0:00:19]} 31. Ka2 {[%emt 0:00:24]} Be7 {[%emt 0:00:24]} 32. Qd2 {[%emt 0:00:15]} Bg5 {[%emt 0:00:02]} 33. Qe2 {[%emt 0:00:05]} Bf6 {[%emt 0:00:12]} 34. Bc1 {[%emt 0:00:12]} Qd8 {[%emt 0:00:09]} 35. Bh6 {[%emt 0:00:03]} Bg7 {[%emt 0:00:03]} 36. Bxg7 {[%emt 0:00:04]} Rxg7 {[%emt 0:00:01]} 37. Qe5 {[%emt 0:00:01]} Qf6 {[%emt 0:00:06]} (37... Qb6 $1 $15) 38. Qc7+ {[%emt 0:00:01]} Kg8 {[%emt 0:00:01]} (38... Qe7 $11 {keeps the balance.} 39. Qb6 (39. Qxa5 Qc5 $11) (39. Qxe7+ $2 Kxe7 40. Bxf5 Kd6 $19) 39... Rg5) 39. Qxa5 $16 {[%emt 0:00:01]} e5 {[%emt 0:00:07]} ({Better is} 39... Qh4 $14) 40. b6 $16 {[%emt 0:00:04]} Qd6 {[%emt 0:00:02]} 41. Bxf5 {[%emt 0:00:01]} Rf7 {[%emt 0:00:03]} 42. Bg4 {[%emt 0:00:03]} Ne6 {[%emt 0:00:07]} (42... Re7 $16 43. a4 Qc6) 43. Qd2 $2 {[%emt 0:00:03]} (43. Bxe6 $18 Qxe6 44. Rg1+ Kf8 45. Qc5+ Re7 46. a4) 43... Nf4 $11 {[%emt 0:00:01]} 44. Qb4 {[%emt 0:00:02]} Qxb4 {[%emt 0:00:02]} (44... Qc6 $1 $11 {remains equal.} 45. Qb3 (45. Rxe5 Qxc2+ 46. Ka1 Qc1+ 47. Ka2 Qc2+ 48. Ka1 Qc1+ 49. Ka2 Qc2+ $11) 45... Re7) 45. axb4 $16 {[%emt 0:00:00]} Re7 {[%emt 0:00:01]} 46. Kb3 {[%emt 0:00:02]} Kf7 {[%emt 0:00:00]} 47. b5 {[%emt 0:00:01]} (47. Bc8 $16) 47... Kf6 $11 {[%emt 0:00:01]} 48. Ra1 {[%emt 0:00:01]} e4 {[%emt 0:00:01]} 49. fxe4 {[%emt 0:00:01]} dxe4 {[%emt 0:00:01]} 50. Ra8 {[%emt 0:00:03]} e3 {[%emt 0:00:02]} 51. fxe3 {[%emt 0:00:02]} dxe3 {[%emt 0:00:00]} 52. Ra1 {[%emt 0:00:04]} Kg5 {[%emt 0:00:09]} 53. Rg1 {[%emt 0:00:02]} Kh4 {[%emt 0:00:03]} 54. c4 {[%emt 0:00:06]} Rg7 {[%emt 0:00:03]} 55. Rh1+ {[%emt 0:00:01]} Kg3 $1 {[%emt 0:00:03]} (55... Kxg4 $2 56. Rg1+ Kf5 57. Rxg7 $18) 56. Bd1 {[%emt 0:00:01]} e2 {[%emt 0:00:02]} 57. Bxe2 {[%emt 0:00:01]} Nxe2 {[%emt 0:00:01]} 58. c5 {[%emt 0:00:00]} Rg5 {[%emt 0:00:01]} 59. Kc4 {[%emt 0:00:02]} Rg4+ {[%emt 0:00:03]} 60. Kd3 {[%emt 0:00:03]} Nf4+ {[%emt 0:00:03] [#]} (60... Kg2 61. Rd1 Rg5 (61... Nf4+ $2 62. Ke3 $18) 62. c6 (62. Kxe2 Re5+ 63. Kd3 Rxc5 $14) (62. Rd2 Rxc5 63. Rxe2+ Kg3 $16) 62... Rd5+ 63. Kxe2 Re5+ 64. Kd3 (64. Kd2 bxc6 65. bxc6 Rd5+ 66. Ke2 Re5+ 67. Kd3 Rd5+ 68. Kc4 Rxd1 $18) 64... Rd5+ 65. Ke4 Rxd1 66. c7 $18) (60... Rg5 $1 $11) 61. Kc3 {[%emt 0:00:01]} ({White should play} 61. Ke4 $1 $16) 61... Nd5+ $11 {[%emt 0:00:01]} 62. Kd3 {[%emt 0:00:01]} Rb4 {[%emt 0:00:01]} 63. Rg1+ {[%emt 0:00:02]} Kf2 {[%emt 0:00:01]} 64. Rg7 {[%emt 0:00:00]} Rxb5 $2 {[%emt 0:00:01][%mdl 8192]} (64... Nf4+ $11 65. Kd2 Rxb5) 65. Kc4 $18 {[%emt 0:00:01]} ({Less strong is} 65. Rxh7 Rxc5 66. Kd4 (66. Rxb7 Nxb6 67. h6 Rh5 $11) 66... Rb5 $11) 65... Rxb6 {[%emt 0:00:06]} 66. cxb6 {[%emt 0:00:02]} Nxb6+ {[%emt 0:00:00]} 67. Kd4 {[%emt 0:00:00]} h6 {[%emt 0:00:02]} 68. Rxb7 {[%emt 0:00:02]} Nc8 {[%emt 0:00:00]} 69. Kc5 {[%emt 0:00:01]} 1-0

[Event "CCT Julius Baer-D1-Place 2024"]
[Site "Online"]
[Date "2024.09.26"]
[Round "1"]
[White "Fedoseev, Vladimir"]
[Black "Oparin, Grigoriy"]
[Result "1-0"]
[ECO "A47"]
[WhiteElo "2692"]
[BlackElo "2662"]
[Annotator "TA"]
[PlyCount "111"]
[EventDate "2024.09.25"]
[EventType "swiss"]
[EventCountry "NET"]
[SourceTitle "playchess.com"]
[Source "ChessBase"]
[SourceQuality "1"]
[TimeControl "600+2"]

{[%evp 9,111,4,8,8,16,10,8,14,12,8,4,0,0,-21,-16,0,-18,-12,0,0,75,0,95,35,49,-18,-17,-43,-18,-52,0,0,0,0,0,0,0,0,0,0,0,-30,53,0,18,19,4,4,57,45,53,37,71,31,41,33,33,26,35,33,29,16,13,17,13,23,12,8,26,29,36,41,41,0,0,0,9,0,0,0,0,0,217,213,214,214,205,193,29977,29978,29980,29976,29975,29976,29976,29976,29976,29978,29974,29976,29986,29987,29996,29985]} 1. d4 {[%emt 0:00:04]} Nf6 {[%emt 0:00:03]} 2. Nf3 {[%emt 0:00:03]} e6 {[%emt 0:00:01]} 3. Bf4 {[%emt 0:00:02]} b6 {[%emt 0:00:01]} 4. e3 {[%emt 0:00:18]} Bb7 {[%emt 0:00:01]} 5. Bd3 {[%emt 0:00:02]} c5 {[%emt 0:00:05]} 6. O-O {[%emt 0:01:03]} Nc6 {[%emt 0:00:02]} 7. c3 {[%emt 0:00:26]} Nh5 {[%emt 0:00:15]} 8. Bg5 {[%emt 0:00:04] The position is equal.} Be7 {[%emt 0:00:01]} 9. Bxe7 {[%emt 0:00:06]} Qxe7 {[%emt 0:00:00]} 10. dxc5 {[%emt 0:00:52]} bxc5 {[%emt 0:00:05]} 11. Nbd2 {[%emt 0:00:02]} O-O {[%emt 0:00:33]} 12. Re1 {[%emt 0:00:07]} f5 {[%emt 0:00:21]} 13. a3 {[%emt 0:00:33]} Rad8 {[%emt 0:01:30]} 14. b4 {[%emt 0:00:07]} Nf6 {[%emt 0:00:14]} (14... d6 $11) 15. Qa4 {[%emt 0:00:26]} (15. e4 $16) 15... d5 {[%emt 0:00:55]} (15... Ne4 $11) 16. bxc5 {[%emt 0:00:25]} (16. b5 $16 Nb8 17. Qxa7) 16... Ne4 $14 {[%emt 0:00:40]} 17. Qc2 {[%emt 0:00:59]} (17. Bxe4 $14 fxe4 18. Nd4) 17... Nxc5 $11 {[%emt 0:00:31]} 18. Bb5 {[%emt 0:00:09]} Na5 {[%emt 0:01:08]} 19. Rab1 {[%emt 0:00:13]} Ne4 {[%emt 0:00:13]} (19... Qc7 $15) 20. Qa4 {[%emt 0:00:31]} Qc7 {[%emt 0:00:05]} 21. Rec1 {[%emt 0:00:18]} Nxd2 {[%emt 0:01:03]} 22. Nxd2 {[%emt 0:00:04]} f4 {[%emt 0:00:01]} 23. Re1 {[%emt 0:01:21]} fxe3 {[%emt 0:00:35]} 24. Rxe3 {[%emt 0:00:05][%cal Od2f3]} e5 {[%emt 0:00:00]} 25. Bf1 {[%emt 0:00:36]} Nc6 {[%emt 0:00:10]} ({Better is} 25... d4 $11 26. cxd4 Rxd4) 26. Nf3 {[%emt 0:00:27]} (26. c4 $1 $14) 26... e4 {[%emt 0:00:20]} 27. Nd4 {[%emt 0:00:02]} Qf7 {[%emt 0:00:00] Prevents Ne6.} 28. Re2 {[%emt 0:00:18] Active counter play!} Ne5 {[%emt 0:00:05]} ({Black should play} 28... Rc8 $11) 29. Qxa7 $14 {[%emt 0:00:06]} Rd7 {[%emt 0:00:05]} 30. Qb6 {[%emt 0:00:01]} Re7 {[%emt 0:00:40] Prevents Ne6} 31. Qd6 {[%emt 0:00:12][%cal Ob1b7] [#] Hoping for Rxb7!} Nc4 {[%emt 0:00:14]} 32. Qg3 {[%emt 0:00:04]} Nxa3 {[%emt 0:00:02]} 33. Ra1 {[%emt 0:00:12]} Nc4 {[%emt 0:00:01]} 34. Rea2 {[%emt 0:00:02]} Ne5 {[%emt 0:00:07]} 35. Ra7 {[%emt 0:00:02]} Qf6 {[%emt 0:00:02]} (35... Ng6 {simplifies} 36. Qe3 h6 37. Rb1 Bc8) 36. Rb1 {[%emt 0:00:06][%cal Ba1b1,Bb1b5,Bb5c5][%mdl 32]} Bc8 {[%emt 0:00:13]} 37. Rxe7 {[%emt 0:00:03]} Qxe7 {[%emt 0:00:00]} 38. h3 {[%emt 0:00:01]} h5 {[%emt 0:00:07][%cal Bh7h5,Bh5h4][%mdl 32]} 39. Rb5 {[%emt 0:00:04]} h4 {[%emt 0:00:05]} 40. Qe3 $36 {[%emt 0:00:01][%mdl 2048] Black is under pressure.} Qf7 {[%emt 0:00:09]} 41. c4 {[%emt 0:00:10]} Nxc4 {[%emt 0:00:24]} 42. Bxc4 {[%emt 0:00:01]} dxc4 {[%emt 0:00:00]} 43. Rc5 {[%emt 0:00:04]} Bb7 {[%emt 0:00:07]} 44. Nf5 {[%emt 0:00:05]} Qf6 {[%emt 0:00:10] Prevents Re5} 45. Qe2 {[%emt 0:00:10]} Ba6 $2 {[%emt 0:00:03]} (45... Bc8 $11 46. Ne3 Be6) 46. Qxe4 $18 {[%emt 0:00:03] Ne7+ is the strong threat.} g6 {[%emt 0:00:04]} 47. Nh6+ {[%emt 0:00:07]} ({Inferior is} 47. Nxh4 Qxf2+ 48. Kh2 Qxc5 $11) 47... Kg7 {[%emt 0:00:02]} 48. Ng4 {[%emt 0:00:00]} Qa1+ {[%emt 0:00:02] [#]} (48... Qf4 $18 49. Qe1 Kh7) 49. Kh2 {[%emt 0:00:01] White mates.} Rf5 {[%emt 0:00:03]} 50. Qe7+ {[%emt 0:00:08]} Rf7 {[%emt 0:00:01]} 51. Qxh4 {[%emt 0:00:02]} Qd4 {[%emt 0:00:03]} 52. Qh6+ {[%emt 0:00:03]} Kg8 {[%emt 0:00:00]} 53. Qxg6+ {[%emt 0:00:00]} Kf8 {[%emt 0:00:01]} 54. Qh6+ {[%emt 0:00:05]} Kg8 {[%emt 0:00:05]} 55. Rg5+ {[%emt 0:00:02]} Rg7 {[%emt 0:00:00]} 56. Nf6+ {[%emt 0:00:01] Weighted Error Value: White=0.12 (very precise) /Black=0.27 (precise) .  Loses game:     	---       	Black=1      Mistake:       	White=4     	Black=6      Inaccurate:     	White=5     	Black=1      OK:         	White=18    	Black=21     Best:        	White=3     	---} 1-0